bitfinex-derivatives/quotes_ETHF0:USTF0_20241020
["timestamp","ask_amount","ask_price","bid_price","bid_amount"]
[1729438728417,0.3709,2696.8,2696.6,0.37092]
[1729438729714,0.3709,2696.8,2696.5,0.37093]
[1729438730617,3.9339,2696.9,2696.2,3.959]
[1729438730812,3.9339,2696.9,2696.7,0.3709]
[1729438731022,3.2078,2697.3,2696.6,3.2078]
[1729438731322,0.7401,2697.5,2697.3,0.37082]
[1729438731530,0.7401,2697.5,2697.3,0.37083]
[1729438731922,1.1109,2697.5,2697.3,0.37083]
[1729438732225,0.7401,2697.5,2697.0,0.7473]
[1729438732430,3.2078,2697.4,2697.0,1.11816]
[1729438732622,3.2078,2697.4,2697.0,0.7473]
[1729438732623,0.37083,2697.3,2697.0,0.7473]
[1729438732926,0.37087,2697.0,2696.8,0.37089]
[1729438734031,3.2078,2697.1,2696.5,0.7342]
[1729438734331,0.3709,2696.8,2696.5,1.10513]
[1729438734515,1.03101,2696.7,2696.5,0.37093]
[1729438734718,1.03101,2696.7,2696.2,0.866]
[1729438735032,1.03101,2696.7,2696.6,0.37092]
[1729438735827,0.6601,2696.7,2696.6,0.37092]
[1729438736327,0.866,2697.3,2696.8,0.37089]
[1729438736529,0.37088,2697.0,2696.8,0.37089]
[1729438736925,0.37085,2697.2,2696.4,0.92739]
[1729438737131,1.3572,2697.3,2696.4,0.92739]
[1729438737132,1.3572,2697.3,2697.1,0.37085]
[1729438737317,1.72803,2697.3,2697.1,0.37085]
[1729438737517,1.3572,2697.3,2696.7,2.1601]
[1729438737716,1.72803,2697.3,2697.1,0.37085]
[1729438738123,1.3572,2697.3,2696.7,2.1601]
[1729438738418,0.37086,2697.1,2696.9,0.37088]
[1729438738618,0.37087,2697.0,2696.8,0.37089]
[1729438739128,0.37086,2697.1,2696.8,0.37089]
[1729438739528,0.37088,2697.0,2696.7,1.1193]
[1729438739722,0.37088,2697.0,2696.8,0.3709]
[1729438739919,3.2078,2697.1,2696.8,0.3709]
[1729438740124,3.57866,2697.1,2696.8,0.3709]
[1729438740620,3.57866,2697.1,2696.9,0.37088]
[1729438740822,0.37088,2697.0,2696.8,0.37089]
[1729438741023,3.57866,2697.1,2696.9,0.37088]
[1729438742232,0.37089,2696.9,2696.7,1.1193]
[1729438742433,0.3709,2696.8,2696.7,0.7484]
[1729438742633,0.7089,2696.8,2696.7,0.7484]
[1729438742835,0.7089,2696.8,2696.7,1.11931]
[1729438744528,0.7089,2696.8,2696.3,4.6146]
[1729438744529,0.37093,2696.6,2696.4,0.37094]
[1729438744731,1.12522,2696.7,2696.5,0.37093]
[1729438744931,0.7543,2696.7,2696.3,4.6146]
[1729438745226,3.2078,2696.8,2696.3,4.6146]
[1729438745430,3.2078,2696.8,2696.7,0.37091]
[1729438748140,3.2078,2696.8,2696.7,4.07891]
[1729438749334,3.2078,2697.4,2696.7,6.9158]
[1729438749532,3.57862,2697.4,2697.3,0.37082]
[1729438750032,3.2078,2697.4,2697.3,0.37082]
[1729438750643,3.57861,2697.4,2697.3,0.37082]
[1729438751136,3.2078,2697.4,2697.3,0.37082]
[1729438753135,3.2078,2697.4,2697.3,0.4867594]
[1729438753743,3.2078,2697.7,2697.3,0.1159394]
[1729438754044,0.6268,2697.8,2697.4,0.72333632]
[1729438754231,0.6268,2697.8,2697.5,0.11593132]
[1729438754432,0.6268,2697.8,2697.7,0.37077]
[1729438755839,0.6268,2697.8,2697.4,1.2264]
[1729438755840,3.2078,2698.0,2697.9,0.37074]
[1729438757331,0.6288,2698.1,2698.0,0.37073]
[1729438758140,0.6288,2698.1,2697.4,3.12154116]
[1729438758342,0.37075,2697.9,2697.6,0.37077]
[1729438758546,0.37076,2697.8,2697.6,0.37077]
[1729438758733,0.6459,2697.7,2697.6,0.37077]
[1729438760837,0.6459,2697.7,2697.4,0.6074]
[1729438761139,0.37082,2697.4,2697.3,0.37082]
[1729438761641,0.37082,2697.4,2697.3,0.37083]
[1729438761943,0.37083,2697.3,2697.2,0.37084]
[1729438762238,2.16708791,2697.6,2697.1,0.37085]
[1729438762239,1.93808791,2697.6,2697.1,0.37085]
[1729438762444,0.9761,2697.6,2697.5,0.3708]
[1729438764041,0.6053,2697.6,2697.5,0.3708]
[1729438764655,0.6053,2697.6,2697.0,5.96710116]
[1729438764853,0.97609,2697.6,2697.4,0.3708]
[1729438765246,0.6053,2697.6,2697.0,0.96812116]
[1729438765447,0.37083,2697.3,2697.1,0.48678643]
[1729438765749,0.37084,2697.2,2697.1,0.37084]
[1729438765948,0.37084,2697.2,2697.0,0.37086]
[1729438766141,0.98855,2697.1,2697.0,0.37086]
[1729438766342,0.6177,2697.1,2697.0,0.37086]
[1729438769950,0.6177,2697.1,2696.9,0.6368]
[1729438770150,0.37087,2697.0,2696.9,0.37088]
[1729438770345,0.37089,2696.9,2696.8,0.37089]
[1729438771253,0.5991,2697.0,2696.9,0.37088]
[1729438773148,0.96997,2697.0,2696.9,0.37088]
[1729438774051,0.5991,2697.0,2696.7,3.2078]
[1729438774359,0.96998,2697.0,2696.9,0.37088]
[1729438775261,0.5991,2697.0,2696.9,0.37088]
[1729438775856,0.5991,2697.0,2696.9,0.48683825]
[1729438776355,0.96997,2697.0,2696.9,0.48683825]
[1729438776565,0.5991,2697.0,2696.9,0.48683825]
[1729438777360,0.5991,2697.0,2696.9,0.48683818]
[1729438778252,0.96997,2697.0,2696.9,0.48683818]
[1729438778663,0.5991,2697.0,2696.9,0.48683818]
[1729438778855,0.96198791,2697.3,2696.9,0.11595818]
[1729438779058,1.56208791,2697.4,2697.0,0.71975032]
[1729438779261,1.93290791,2697.4,2697.3,0.37083]
[1729438780163,1.56208791,2697.4,2697.3,0.37083]
[1729438780462,0.96198791,2697.4,2697.3,0.37083]
[1729438780656,1.44298186,2697.6,2697.3,0.37083]
[1729438780657,0.96198791,2697.6,2697.3,0.11594076]
[1729438780856,0.96198791,2697.7,2697.4,0.11593588]
[1729438781060,0.96198791,2697.8,2697.5,0.6256]
[1729438781260,0.96198791,2697.8,2697.7,0.37077]
[1729438781455,0.37077,2697.8,2697.6,0.37078]
[1729438781656,0.96198791,2697.8,2697.6,0.37078]
[1729438782057,1.33275791,2697.8,2697.6,0.37078]
[1729438782565,1.33275791,2697.8,2697.5,0.6256]
[1729438782867,1.33275791,2697.8,2697.6,0.37078]
[1729438783454,0.37077,2697.8,2697.7,0.37077]
[1729438784054,4.54053791,2697.9,2697.7,0.37077]
[1729438784251,4.16978791,2697.9,2697.5,0.6256]
[1729438784456,0.37077,2697.8,2697.6,0.37078]
[1729438784964,4.54053791,2697.9,2697.5,0.6256]
[1729438785156,4.54053791,2697.9,2697.8,0.37076]
[1729438785361,4.16978791,2697.9,2697.6,0.37078]
[1729438785557,0.37077,2697.8,2697.6,0.37078]
[1729438785864,1.33275791,2697.8,2697.7,0.37077]
[1729438786060,0.37082,2697.4,2697.3,0.37082]
[1729438786263,0.96577815,2697.6,2697.3,0.48676192]
[1729438786563,3.57861,2697.4,2697.3,0.37082]
[1729438786863,0.37085,2697.2,2697.1,0.37085]
[1729438787164,0.37084,2697.3,2697.2,0.37083]
[1729438787366,0.37083,2697.3,2697.1,0.37085]
[1729438787767,0.37083,2697.3,2697.0,3.2078]
[1729438787960,4.17357815,2697.4,2697.1,0.11595209]
[1729438788167,4.17357815,2697.4,2697.0,3.2078]
[1729438788367,0.37083,2697.3,2697.2,0.37084]
[1729438788560,4.17357815,2697.4,2697.0,3.2078]
[1729438788763,0.37084,2697.2,2697.1,0.48680191]
[1729438789064,4.17357815,2697.4,2697.1,0.48680191]
[1729438789262,0.37083,2697.3,2697.1,0.37085]
[1729438789663,0.37084,2697.2,2697.1,0.37085]
[1729438789859,0.96577815,2697.3,2696.9,0.6164]
[1729438790063,0.37087,2697.0,2696.9,0.6164]
[1729438790263,0.37088,2696.9,2696.8,0.37089]
[1729438790569,0.37088,2696.9,2696.8,0.67238267]
[1729438790967,0.37088,2696.9,2696.8,0.11595869]
[1729438792067,0.37088,2696.9,2696.8,0.48685869]
[1729438794873,1.62008,2697.0,2696.9,0.37088]
[1729438795068,1.62008,2697.0,2696.9,0.48683869]
[1729438795869,1.2492,2697.0,2696.9,0.48683869]
[1729438796765,1.62007,2697.0,2696.9,0.48683869]
[1729438797771,4.17357815,2697.2,2696.7,0.96812116]
[1729438797972,0.96577815,2697.4,2697.0,3.2078]
[1729438798274,0.96577815,2697.4,2697.3,0.37083]
[1729438801962,2.17287815,2697.5,2697.3,0.37083]
[1729438802168,2.17287815,2697.5,2697.4,0.37081]
[1729438802772,0.96577815,2697.5,2697.4,0.37081]
[1729438802973,0.96577815,2697.7,2697.4,0.11594501]
[1729438803166,1.55717815,2697.8,2697.7,0.37077]
[1729438803871,0.5914,2697.8,2697.7,0.37077]
[1729438804073,1.55787954,2697.8,2697.7,0.37077]
[1729438804267,2.03438186,2697.8,2697.7,0.37077]
[1729438804467,2.03438186,2697.8,2697.3,0.96812116]
[1729438804468,2.40515186,2697.8,2697.6,0.37078]
[1729438804669,0.96632067,2697.7,2697.6,0.37078]
[1729438804871,0.96632067,2697.7,2697.6,0.48671273]
[1729438805375,1.55772067,2697.8,2697.7,0.37077]
[1729438805575,1.55772067,2697.8,2697.7,1.02187]
[1729438806070,1.55772067,2697.8,2697.7,1.13779886]
[1729438806272,1.55772067,2697.8,2697.7,1.02187]
[1729438806576,0.96632067,2697.9,2697.8,0.37076]
[1729438806967,0.96632067,2697.9,2697.8,0.48668556]
[1729438807164,0.96632067,2697.9,2697.8,0.37076]
[1729438810578,1.33706067,2697.9,2697.8,0.37076]
[1729438810881,1.33706067,2697.9,2697.3,2.31518174]
[1729438810882,0.37078,2697.7,2697.6,0.37078]
[1729438811072,1.3354326,2697.7,2697.6,0.37078]
[1729438811377,1.3354226,2697.8,2697.3,0.6318]
[1729438811570,1.5841526,2697.7,2697.6,0.37077]
[1729438812477,0.9646526,2697.8,2697.3,0.6318]
[1729438812671,0.9646526,2697.8,2697.7,0.37077]
[1729438813183,0.9646526,2697.9,2697.8,0.37076]
[1729438813378,0.9646526,2697.9,2697.4,1.89514116]
[1729438813577,0.37074,2698.0,2697.9,0.37074]
[1729438813578,1.3353926,2698.0,2697.9,0.37074]
[1729438813882,1.3353926,2698.0,2697.8,0.37075]
[1729438813883,0.9646526,2698.0,2697.8,0.37075]
[1729438814080,1.3353926,2698.0,2697.8,0.37075]
[1729438814585,0.9646526,2698.0,2697.8,0.37075]
[1729438814774,0.9646526,2697.9,2697.8,0.37075]
[1729438815085,0.37077,2697.8,2697.6,0.37078]
[1729438815383,0.37077,2697.7,2697.6,0.37078]
[1729438816181,1.3354226,2697.8,2697.6,0.37078]
[1729438816382,0.9646526,2697.8,2697.6,0.37078]
[1729438816585,0.37077,2697.7,2697.6,0.37078]
[1729438816878,0.9646526,2697.7,2697.3,0.6318]
[1729438817087,0.37079,2697.6,2697.5,0.3708]
[1729438818575,1.5773526,2697.7,2697.3,0.6318]
[1729438818773,0.9646526,2697.7,2697.6,0.37079]
[1729438818975,1.81375186,2697.8,2697.3,1.59992116]
[1729438818976,0.9646526,2697.8,2697.3,1.59992116]
[1729438819176,0.9646526,2697.8,2697.6,0.37078]
[1729438819177,0.37078,2697.7,2697.6,0.37078]
[1729438819890,0.9646526,2697.8,2697.3,1.59992116]
[1729438820088,1.3354226,2697.8,2697.7,0.37077]
[1729438820885,1.3354026,2697.9,2697.3,2.52698116]
[1729438821085,1.3354026,2697.9,2697.8,0.37076]
[1729438821392,4.1724526,2697.9,2697.8,0.37076]
[1729438821576,0.9646526,2698.0,2697.5,0.96812116]
[1729438821780,1.44298186,2698.1,2697.6,3.39929449]
[1729438821781,1.3353726,2698.1,2697.6,3.39929449]
[1729438822085,1.3353726,2698.1,2698.0,0.37073]
[1729438824691,0.9646526,2698.1,2698.0,0.37073]
[1729438825191,1.3353726,2698.1,2698.0,0.37073]
[1729438825778,0.9646526,2698.1,2698.0,0.37073]
[1729438826190,1.3353826,2698.1,2697.6,3.09789116]
[1729438826384,1.3353826,2698.1,2698.0,0.37073]
[1729438826586,0.37074,2698.0,2697.9,0.37074]
[1729438826786,0.9646526,2698.1,2697.6,0.37078]
[1729438826989,0.37076,2697.8,2697.7,0.11592806]
[1729438827295,0.9646526,2698.1,2697.7,0.11592802]
[1729438827485,1.3353726,2698.1,2698.0,0.37073]
[1729438827883,0.37072,2698.1,2698.0,0.37073]
[1729438828179,1.3353726,2698.1,2698.0,0.37073]
[1729438828381,0.37074,2698.0,2697.9,0.37074]
[1729438830495,0.37074,2697.9,2697.8,0.6409]
[1729438830787,0.37076,2697.8,2697.7,0.37076]
[1729438830987,0.99636,2697.8,2697.7,0.37076]
[1729438831184,1.5716526,2698.0,2697.4,2.11282]
[1729438831394,1.3353926,2698.0,2697.9,0.37074]
[1729438831692,0.37075,2697.9,2697.8,0.37075]
[1729438831884,1.3353926,2698.0,2697.9,0.37074]
[1729438832191,0.9646526,2698.0,2697.5,0.92701]
[1729438832385,0.37075,2697.9,2697.8,0.37075]
[1729438832887,1.3353826,2698.0,2697.9,0.37074]
[1729438833288,1.3353726,2698.1,2698.0,0.37073]
[1729438833593,0.37072,2698.1,2698.0,0.37073]
[1729438837486,0.37074,2698.0,2697.9,0.37074]
[1729438838494,0.37075,2697.9,2697.8,0.37075]
[1729438838891,0.37077,2697.8,2697.7,0.37076]
[1729438839084,0.37077,2697.8,2697.7,0.11592583]
[1729438839286,0.3708,2697.5,2697.4,1.93192116]
[1729438839486,4.1347,2697.9,2697.6,0.37078]
[1729438839487,0.587,2697.7,2697.6,0.37078]
[1729438840087,0.95777,2697.7,2697.6,0.37078]
[1729438840283,0.95777,2697.7,2697.6,0.48671158]
[1729438841096,0.9646526,2697.8,2697.4,1.2291]
[1729438841292,1.9599726,2698.1,2697.6,2.01102289]
[1729438841591,1.9599726,2698.1,2698.0,0.37073]
[1729438842499,1.9599726,2698.1,2698.0,0.48664495]
[1729438843093,1.9599726,2698.1,2698.0,0.37073]
[1729438843295,1.9599726,2698.1,2698.0,0.48664722]
[1729438843597,0.99532,2698.1,2698.0,0.48664722]
[1729438843995,2.43830186,2698.1,2698.0,0.48664722]
[1729438844299,0.99532,2698.1,2698.0,0.11591722]
[1729438844504,0.99532,2698.1,2698.0,0.48664722]
[1729438844893,1.96023251,2698.1,2698.0,0.48664829]
[1729438845596,1.96024219,2698.1,2698.0,0.48664829]
[1729438846501,1.96024219,2698.1,2698.0,0.11591829]
[1729438847005,0.99532,2698.1,2698.0,0.11591829]
[1729438847206,2.43830186,2698.1,2698.0,0.11591829]
[1729438847897,1.81370186,2698.1,2698.0,0.11591829]
[1729438848601,1.81370186,2698.1,2697.9,0.6239]
[1729438848602,0.37073,2698.0,2697.9,0.6239]
[1729438848804,1.33639695,2698.0,2697.9,0.92529543]
[1729438849106,0.37073,2698.0,2697.9,1.29604543]
[1729438849305,1.33639733,2698.0,2697.9,1.29604543]
[1729438849698,1.33639733,2698.0,2697.9,0.92529543]
[1729438850115,1.33639733,2698.0,2697.9,0.99465]
[1729438850414,1.33639733,2698.0,2697.9,1.29603899]
[1729438851310,1.33639733,2698.0,2697.9,1.75970628]
[1729438851506,1.33639733,2698.0,2697.9,0.92528899]
[1729438851706,0.37073,2698.0,2697.9,0.73981884]
[1729438852304,1.33635384,2698.0,2697.9,0.73981884]
[1729438852511,1.33635517,2698.0,2697.9,1.11056884]
[1729438852709,1.33635517,2698.0,2697.9,0.73981884]
[1729438852710,0.37073,2698.0,2697.9,0.73981884]
[1729438852919,1.33633109,2698.0,2697.9,0.92528708]
[1729438853116,1.81371186,2698.0,2697.9,0.73981884]
[1729438853622,1.81371186,2698.0,2697.9,0.11591884]
[1729438855015,2.42251186,2698.0,2697.9,0.11591884]
[1729438857026,2.42251186,2698.0,2697.9,0.48666884]
[1729438857322,2.42251186,2698.0,2697.9,0.11591884]
[1729438857512,2.42251186,2698.0,2697.9,0.48666884]
[1729438858016,2.42251186,2698.0,2697.9,0.67214497]
[1729438858718,1.81371186,2698.0,2697.9,0.30139497]
[1729438859416,1.81371186,2698.0,2697.9,0.67214497]
[1729438859609,1.33651195,2698.0,2697.9,1.1358243]
[1729438859815,1.33651195,2698.0,2697.9,2.10394546]
[1729438860620,0.96578195,2698.0,2697.9,2.10394546]
[1729438860820,1.33651195,2698.0,2697.9,2.10394546]
[1729438861215,1.33651195,2698.0,2697.9,2.10393987]
[1729438863224,0.96576951,2698.0,2697.9,2.83236224]
[1729438863520,1.33649951,2698.0,2697.9,2.10393987]
[1729438863722,1.33649951,2698.0,2697.9,3.20308707]
[1729438863917,1.44298186,2698.1,2697.9,1.73318987]
[1729438864117,1.81371186,2698.1,2698.0,1.13579871]
[1729438865314,0.37073,2698.1,2698.0,2.10391987]
[1729438865520,0.37073,2698.1,2698.0,1.13579871]
[1729438865722,0.37073,2698.1,2698.0,2.10391987]
[1729438865923,0.37073,2698.1,2698.0,1.13579871]
[1729438866220,0.37073,2698.1,2698.0,2.10391987]
[1729438867319,0.37073,2698.1,2698.0,1.33885116]
[1729438867522,0.37073,2698.1,2698.0,2.1039066]
[1729438868516,0.37073,2698.1,2698.0,1.7331766]
[1729438868819,0.37073,2698.1,2698.0,2.1039066]
[1729438870818,3.12697582,2698.2,2698.1,0.37072]
[1729438870819,3.49769582,2698.2,2698.1,0.37072]
[1729438871135,3.49769582,2698.2,2698.1,0.48663638]
[1729438871336,3.49769582,2698.2,2698.1,0.11591638]
[1729438871918,3.49769582,2698.2,2698.1,0.30138167]
[1729438872127,3.49769582,2698.2,2698.1,0.11591638]
[1729438872429,3.49769582,2698.2,2698.1,0.48663638]
[1729438872930,2.50717582,2698.2,2698.1,0.67209614]
[1729438873126,2.50717582,2698.2,2698.1,0.67209788]
[1729438873327,0.5832,2698.2,2698.1,0.67209819]
[1729438873727,0.5832,2698.2,2698.1,1.13574965]
[1729438873931,0.5832,2698.2,2698.1,0.67209819]
[1729438874233,0.9539,2698.2,2698.1,0.67209819]
[1729438874616,0.9539,2698.2,2698.1,0.6720949]
[1729438874824,0.5832,2698.2,2698.1,0.6720949]
[1729438875818,0.5832,2698.2,2698.1,1.9248949]
[1729438876025,0.5832,2698.2,2698.1,2.38854652]
[1729438876425,0.5832,2698.2,2698.1,1.77514652]
[1729438878028,0.9539,2698.2,2698.1,1.77514652]
[1729438878229,9.90236977,2698.2,2697.8,0.96812116]
[1729438878529,9.90236977,2698.2,2697.4,0.37081]
[1729438878530,0.37079,2697.6,2697.4,0.37081]
[1729438878731,2.29991414,2697.6,2697.4,0.96241]
[1729438878927,1.92912414,2697.6,2697.4,1.1809]
[1729438879135,2.29991414,2697.6,2697.4,1.55171]
[1729438879321,1.44635981,2697.5,2697.4,1.1809]
[1729438879522,1.44635981,2697.5,2697.4,1.55171]
[1729438880524,1.44635981,2697.6,2697.4,1.1809]
[1729438880726,1.44635981,2697.6,2697.5,0.3708]
[1729438881426,1.44635981,2697.7,2697.6,0.37079]
[1729438883326,1.81713981,2697.7,2697.6,0.37079]
[1729438884131,1.44635981,2697.7,2697.6,0.37079]
[1729438886826,1.81712981,2697.7,2697.6,0.37079]
[1729438887436,1.44635981,2697.7,2697.6,0.37079]
[1729438888421,0.96365032,2697.7,2697.6,0.37079]
[1729438888632,3.69072981,2697.8,2697.6,0.37079]
[1729438889428,0.96334258,2697.7,2697.6,0.37079]
[1729438889830,0.37077,2697.7,2697.6,0.37079]
[1729438890137,1.3341257,2697.7,2697.6,0.37079]
[1729438890334,1.3341257,2697.7,2697.6,0.48672708]
[1729438890830,0.9633557,2697.7,2697.6,0.48672708]
[1729438891738,0.9633557,2697.7,2697.6,0.11593708]
[1729438891932,1.3341257,2697.7,2697.6,0.11593708]
[1729438892138,0.37077,2697.7,2697.5,0.37079]
[1729438892340,1.33406357,2697.7,2697.6,0.11593871]
[1729438892531,1.33406357,2697.7,2697.6,0.48672871]
[1729438892832,1.33406357,2697.7,2697.6,0.37079]
[1729438893235,0.96329357,2697.7,2697.6,0.48672821]
[1729438894737,0.96329357,2697.7,2697.6,0.37079]
[1729438894935,0.96329357,2697.7,2697.6,0.48672585]
[1729438895339,2.83689357,2697.8,2697.7,0.37077]
[1729438895738,3.20765357,2697.8,2697.7,0.37077]
[1729438895941,3.20765247,2697.8,2697.7,0.37077]
[1729438897443,3.20765247,2697.8,2697.6,0.37078]
[1729438897643,0.96329247,2697.7,2697.6,0.37078]
[1729438898243,2.83689247,2697.8,2697.4,1.1809]
[1729438898443,2.83689247,2697.8,2697.7,0.37077]
[1729438898943,3.20765247,2697.8,2697.7,0.37077]
[1729438900535,2.83689247,2697.8,2697.7,0.37077]
[1729438900844,3.20765247,2697.8,2697.7,0.37077]
[1729438901042,1.95335247,2697.8,2697.7,0.37077]
[1729438905450,0.37078,2697.7,2697.6,0.37078]
[1729438905648,0.37078,2697.7,2697.6,0.4867157]
[1729438905649,1.33407247,2697.7,2697.6,0.4867157]
[1729438905844,0.96329247,2697.7,2697.6,0.37078]
[1729438906057,1.33406247,2697.7,2697.6,0.11593714]
[1729438906352,0.3708,2697.5,2697.4,0.37081]
[1729438906649,0.3708,2697.5,2697.4,0.48675466]
[1729438907038,1.33391811,2697.5,2697.4,0.11594466]
[1729438907240,0.96311811,2697.5,2697.3,0.37082]
[1729438907441,0.97981,2697.4,2697.3,0.37082]
[1729438907638,0.97981,2697.4,2697.3,0.4867674]
[1729438908539,0.609,2697.4,2697.3,0.4867674]
[1729438908743,0.97981,2697.4,2697.3,0.1159474]
[1729438909350,0.97981,2697.4,2697.3,0.4867774]
[1729438909845,0.97981,2697.4,2697.3,0.37083]
[1729438910155,0.97981,2697.4,2697.3,0.48677967]
[1729438910452,0.97981,2697.4,2697.3,0.11594967]
[1729438910649,0.37085,2697.2,2697.1,0.37085]
[1729438910952,0.37085,2697.2,2697.1,0.48680414]
[1729438911148,0.37084,2697.2,2697.1,0.48680414]
[1729438911555,0.37084,2697.3,2697.2,0.37083]
[1729438911746,0.37084,2697.3,2697.2,0.48678414]
[1729438912245,0.37084,2697.3,2697.2,0.67230561]
[1729438912556,0.609,2697.4,2697.3,0.37083]
[1729438912749,2.15031811,2697.6,2697.3,0.92797561]
[1729438912952,1.92912414,2697.8,2697.4,0.53333979]
[1729438912953,2.40947792,2697.8,2697.4,0.53333979]
[1729438913147,4.17091811,2697.9,2697.5,2.2067722]
[1729438913350,3.2078,2697.9,2697.8,0.37076]
[1729438913653,0.96311811,2698.0,2697.9,0.37075]
[1729438913856,0.96311811,2698.0,2697.9,0.48667452]
[1729438914055,1.33384811,2698.0,2697.9,0.48667452]
[1729438914448,0.96311811,2698.0,2697.9,0.48667452]
[1729438917047,0.96311811,2698.0,2697.9,0.67214952]
[1729438917654,0.96311811,2698.1,2697.9,0.30139952]
[1729438917949,5.90455981,2698.2,2698.1,0.37072]
[1729438917950,4.78101811,2698.2,2698.1,0.37072]
[1729438918154,4.78101811,2698.2,2698.1,0.67211952]
[1729438918452,4.78101811,2698.2,2698.1,1.92061952]
[1729438919262,1.57321811,2698.2,2698.1,1.92061952]
[1729438920147,1.57321811,2698.2,2698.1,1.30541952]
[1729438920858,1.57321811,2698.2,2698.1,1.30539588]
[1729438921243,1.57321811,2698.2,2698.1,0.67209588]
[1729438921447,1.57321811,2698.2,2698.1,0.4866338]
[1729438921958,2.05645981,2698.2,2698.1,0.4866338]
[1729438922656,2.05645981,2698.2,2698.1,0.1159138]
[1729438922859,5.63495981,2698.2,2698.1,0.1159138]
[1729438923053,4.1886,2698.2,2698.1,0.1159138]
[1729438924151,5.63425769,2698.2,2698.1,0.1159138]
[1729438926052,5.63425769,2698.2,2698.1,0.4866338]
[1729438927257,5.63425769,2698.2,2698.1,0.1159138]
[1729438927553,0.37072,2698.1,2698.0,0.37073]
[1729438927745,1.92013676,2698.1,2698.0,0.67212779]
[1729438927946,1.92013676,2698.1,2698.0,0.4866525]
[1729438928751,1.54926407,2698.1,2698.0,0.4866525]
[1729438929555,1.91998407,2698.1,2698.0,0.1159225]
[1729438929948,0.95652,2698.1,2698.0,0.1159225]
[1729438930153,2.40217769,2698.1,2698.0,0.1159225]
[1729438930361,2.51492414,2698.1,2697.7,0.37077]
[1729438930666,0.96336464,2697.8,2697.7,0.37077]
[1729438930865,1.33412464,2697.8,2697.7,0.48670345]
[1729438931055,1.92412464,2697.8,2697.7,0.48670345]
[1729438931258,1.55336464,2697.8,2697.7,0.48670345]
[1729438932156,1.92412464,2697.8,2697.7,0.11593345]
[1729438932350,2.40580696,2697.8,2697.7,0.11593345]
[1729438932557,0.96076,2697.8,2697.7,0.11593345]
[1729438933151,5.72692414,2697.8,2697.3,0.37082]
[1729438933459,0.96332026,2697.5,2697.4,0.30145412]
[1729438933663,1.33412026,2697.5,2697.4,0.30145412]
[1729438934062,5.66428039,2697.5,2697.4,0.11594389]
[1729438936356,1.0115,2697.5,2697.4,0.11594389]
[1729438936558,5.18233963,2697.5,2697.4,0.11594389]
[1729438936756,5.1823324,2697.5,2697.4,0.11594389]
[1729438936963,4.2193,2697.5,2697.4,0.11594389]
[1729438937361,5.18225031,2697.5,2697.4,0.11594389]
[1729438937665,1.97445031,2697.5,2697.4,0.11594389]
[1729438937867,5.18225031,2697.5,2697.4,0.11594389]
[1729438938954,0.37081,2697.4,2697.3,0.37082]
[1729438939165,1.01561,2697.4,2697.3,0.48676964]
[1729438939358,1.01561,2697.4,2697.3,0.48676958]
[1729438939865,0.6448,2697.4,2697.3,0.48676958]
[1729438940656,4.17075031,2697.5,2697.4,0.37081]
[1729438940870,3.2078,2697.5,2697.4,1.06955958]
[1729438941163,3.2078,2697.5,2697.4,1.25506603]
[1729438942058,3.2078,2697.5,2697.4,1.06955958]
[1729438942258,3.5786,2697.5,2697.4,0.11594958]
[1729438942464,1.59,2697.5,2697.4,0.11594958]
[1729438942770,2.18215031,2697.5,2697.3,0.37082]
[1729438943072,0.95351,2697.4,2697.3,0.37082]
[1729438943262,0.5827,2697.4,2697.3,0.48676951]
[1729438943668,0.95351,2697.4,2697.3,0.48676951]
[1729438944272,0.5827,2697.4,2697.3,0.48676951]
[1729438945076,0.95351,2697.4,2697.3,0.48676951]
[1729438945570,0.5827,2697.4,2697.3,0.48676951]
[1729438946485,0.95351,2697.4,2697.3,0.48676951]
[1729438946671,0.95351,2697.4,2697.3,0.11594951]
[1729438946672,4.16131,2697.4,2697.3,0.11594951]
[1729438946871,8.94268039,2697.4,2696.9,0.5923]
[1729438947178,0.37087,2697.1,2697.0,0.48681848]
[1729438947373,3.57867,2697.1,2697.0,0.11595848]
[1729438947580,3.57867,2697.1,2696.5,4.17103]
[1729438947581,0.37092,2696.6,2696.5,4.17103]
[1729438947776,0.37092,2696.6,2696.5,4.56549034]
[1729438947973,0.37092,2696.6,2696.5,0.89381724]
[1729438948372,0.37092,2696.6,2696.5,0.70826817]
[1729438948671,0.37092,2696.7,2696.5,1.07920817]
[1729438948870,0.37092,2696.7,2696.6,0.11596817]
[1729438949264,0.37092,2696.7,2696.6,0.37092]
[1729438949664,0.37092,2696.7,2696.5,0.96323]
[1729438950272,2.16336243,2697.0,2696.5,0.96323]
[1729438950575,0.37092,2696.6,2696.5,0.96323]
[1729438950781,0.37092,2696.6,2696.5,1.07920778]
[1729438951377,0.37092,2696.6,2696.5,0.5923]
[1729438951774,3.09056243,2697.0,2696.4,0.99754]
[1729438951775,0.96226243,2696.9,2696.4,0.6266]
[1729438952082,0.37094,2696.5,2696.4,0.6266]
[1729438952379,0.37095,2696.4,2696.3,0.37095]
[1729438952876,3.2078,2696.4,2696.0,1.84]
[1729438953179,0.37097,2696.3,2696.2,0.37097]
[1729438953382,3.2078,2696.7,2696.0,1.84]
[1729438953676,0.37099,2696.2,2696.1,0.37099]
[1729438954282,0.37097,2696.3,2696.2,0.37097]
[1729438954479,1.1933,2696.5,2696.0,1.84]
[1729438954682,0.37099,2696.2,2696.1,0.37099]
[1729438955681,1.1933,2696.5,2696.0,1.84]
[1729438955977,0.37098,2696.3,2696.1,0.37099]
[1729438956182,0.37098,2696.3,2696.2,0.37098]
[1729438956777,0.37097,2696.3,2696.0,1.84]
[1729438956983,0.37097,2696.3,2696.2,0.37097]
[1729438957476,0.37097,2696.3,2696.0,1.84]
[1729438957477,3.2078,2696.3,2696.0,1.84]
[1729438957680,3.2078,2696.3,2696.0,2.21099]
[1729438957873,3.2078,2696.3,2696.0,1.84]
[1729438958068,0.37099,2696.2,2696.1,0.37099]
[1729438958592,3.57877,2696.3,2696.2,0.37098]
[1729438958786,0.37097,2696.3,2696.2,0.37098]
[1729438959878,3.2078,2696.6,2696.2,0.37098]
[1729438960080,0.37096,2696.4,2696.0,1.84]
[1729438960279,0.37096,2696.4,2696.2,0.37097]